Cogmind - Beta 15 *** ADVENTURER MODE // 2025.05.12 @ 17:16:30 Player: Olexender Result: Destroyed by Y9-1RL(R) with Subdweller Beam Cannon Performance ------------- Evolutions (0) 0 Regions Visited (2) 400 Robots Destroyed (19) 95 Value Destroyed (338) 338 Prototype IDs (0) 0 Alien Tech Used (0) 0 Bonus (0) 0 TOTAL SCORE: 833 Bonus ------- None Cogmind --------- Core Integrity 0/250 Matter 300/300 Energy 250/250 System Corruption 0% Temperature Cool (9) Movement Walking (190) Ox1 Location -10/Subcaves Parts ------- > --- POWER (1) -------- Ion Engine > --- PROPULSION (2) --- Aluminum Leg > --- UTILITY (2) ------ Small Storage Unit Structural Scanner > --- WEAPON (2) ------- (None) > --- INVENTORY (8) ---- Cooling System High-capacity Matter Pod (200) Terrain Scan Processor Peak State ------------ > --- POWER ------------ Ion Engine > --- PROPULSION ------- Aluminum Leg Aluminum Leg > --- UTILITY ---------- Small Storage Unit Structural Scanner > --- WEAPON ----------- Medium Laser Barrage Gun > --- INVENTORY -------- Aluminum Leg Cooling System High-capacity Matter Pod Terrain Scan Processor Assault Rifle [Rating: 9] Favorites ----------- Power Ion Engine Engine Ion Engine Propulsion Aluminum Leg Leg Aluminum Leg Utility Small Storage Unit Device Structural Scanner Storage Small Storage Unit Weapon Assault Rifle Energy Gun Medium Laser Ballistic Gun Assault Rifle Build | -11 -10 -10 ------- Run | Yrd Mat Sub Slots Evolved . | . . . Power . | . . . Propulsion . | . . . Utility . | . . . Weapon . | . . . Parts Attached 10 | 6 1 3 Power 1 | 1 . . Engine 1 | 1 . . Core . | . . . Reactor . | . . . Propulsion 4 | 2 . 2 Treads . | . . . Leg 4 | 2 . 2 Wheel . | . . . Hover . | . . . Flight . | . . . Utility 2 | 1 1 . Device 1 | . 1 . Storage 1 | 1 . . Processor . | . . . Hackware . | . . . Protection . | . . . Artifact . | . . . Weapon 3 | 2 . 1 Energy Gun 1 | 1 . . Energy Cannon . | . . . Ballistic Gun 2 | 1 . 1 Ballistic Cannon . | . . . Launcher . | . . . Special Weapon . | . . . Impact Weapon . | . . . Slashing Weapon . | . . . Piercing Weapon . | . . . Special Melee Weapon . | . . . Unidentified Prototypes . | . . . Parts Lost 6 | . . 6 Power . | . . . Propulsion 3 | . . 3 Utility . | . . . Weapon 3 | . . 3 Highest Loss Streak 3 | . . 3 To Critical Strikes 1 | . . 1 Average Backups 2 | 1 1 3 Power . | . . . Propulsion . | . . . Utility 2 | . . 3 Weapon . | . . . Tool/Special . | . . . Unused Backups 3 | . . 3 Power . | . . . Propulsion . | . . . Utility 3 | . . 3 Weapon . | . . . Tool/Special . | . . . Average Slot Usage (%) 96 | . 90 98 Engine 14 | . 14 14 Leg 27 | . 28 27 Device 11 | . 4 14 Storage 14 | . 14 14 Energy Gun 6 | . 14 3 Ballistic Gun 21 | . 14 23 Peak Build Rating 9 | 6 7 9 Average Rating 7 | 3 6 8 On Entrance 4 | . 6 7 Naked Turns . | . . . Heaviest Build 16 | 14 15 16 Greatest Support 20 | 20 20 20 Greatest Overweight (x) 1 | . . 1 Average Overweight (x) . | . . . Largest Inventory Capacity 8 | 8 8 8 Average Capacity 7 | 6 8 8 Most Carried 5 | 5 4 5 Average Carried 2 | 1 1 3 Final Capacity 8 | 8 8 8 Final Carried 4 | . 4 3 Class Distribution -------------------- 100% | Mutant Dominant Class ---------------- Mutant | -10/Materials Mutant | -10/Subcaves Resources | -11 -10 -10 ----------- Run | Yrd Mat Sub Matter Collected 708 | 180 181 347 Remotely . | . . . Salvage Created 487 | . 269 218 Parts 35 | . 17 18 Haulers Intercepted . | . . . Recyclers Shooed . | . . . Parts Field Recycled . | . . . Retrieved Matter . | . . . Parts Self-Destructed 19 | . . 19 Prevented . | . . . Kills | -11 -10 -10 ------- Run | Yrd Mat Sub Combat Hostiles Destroyed 12 | . 5 7 Guns 12 | . 5 7 Classes Destroyed 8 | . 6 2 Builder 1 | . 1 . Tunneler 1 | . 1 . Recycler 1 | . 1 . Turret 2 | . . 2 Watcher 2 | . 2 . Swarmer 8 | . 3 5 Grunt 2 | . 2 . Subdweller 2 | . . 2 Best Kill Streak 5 | . 5 5 Combat Bots Only 3 | . 3 3 Max Kills in Single Turn 2 | . 2 1 Gunslinging . | . . . Exploded . | . . . Melee . | . . . Uniques/NPCs Destroyed . | . . . Combat | -11 -10 -10 -------- Run | Yrd Mat Sub Hostile Shots Fired 173 | . 27 146 Missed 70 | . 7 63 Hits 103 | . 20 83 Projectile 103 | . 20 83 Critical Strikes 2 | . . 2 Damage Taken 831 | . 153 678 Core 261 | . 40 221 Absorbed by Shields . | . . . Ignored by Resistances 260 | . 50 210 Core Remaining (%) 100 | 100 . . Volleys Fired 50 | . 21 29 Largest 2 | . 2 2 Hottest 78 | . 70 78 Shots Fired 94 | . 42 52 Gun 94 | . 42 52 Cannon . | . . . Launcher . | . . . Special . | . . . Kinetic 64 | . 21 43 Thermal 30 | . 21 9 Explosive . | . . . Electromagnetic . | . . . Robot Hit Streak 17 | . 6 17 Robot Miss Streak 4 | . 4 4 Penetration Max . | . . . Secondary Targets 3 | . . 3 Max Gunslinging Chain 1 | . . 1 Shots Hit Robots 61 | . 23 38 Core Hits 26 | . 12 14 Critical Kills . | . . . Critical Parts Destroyed . | . . . Critical Strikes 5 | . 5 . Burn 5 | . 5 . Melee Attacks . | . . . Impact . | . . . Slashing . | . . . Piercing . | . . . Sneak Attacks . | . . . Combat Hostiles . | . . . Follow-up Attacks . | . . . Damage Inflicted 912 | . 353 559 Guns 912 | . 353 559 Cannons . | . . . Explosions . | . . . Melee . | . . . Ramming . | . . . Kinetic 698 | . 202 496 Thermal 214 | . 151 63 Explosive . | . . . Electromagnetic . | . . . Impact . | . . . Slashing . | . . . Piercing . | . . . Highest Corruption . | . . . Average Corruption . | . . . Corruption Purged . | . . . Corruption Blocked . | . . . Overload Shots . | . . . Overflow Damage . | . . . Projectiles . | . . . Explosions . | . . . Melee . | . . . Knockbacks . | . . . Impact . | . . . Kinetic . | . . . Secondary . | . . . Self-Inflicted Damage . | . . . Shots . | . . . Rammed . | . . . Targets Rammed . | . . . Kicked . | . . . Crushed . | . . . Highest Temperature 189 | . 93 189 Average Temperature 36 | . 31 57 Received Heat Transfer 739 | . 84 655 Siege Activations . | . . . Martial Activations . | . . . Shielding Activations . | . . . Robots Disrupted . | . . . Combat Hostiles . | . . . Robots Corrupted . | . . . Combat Hostiles . | . . . Parts Fried . | . . . Impact Corruptions . | . . . Robots Melted . | . . . Combat Hostiles . | . . . Parts Melted 3 | . 2 1 Heat Transferred 999 | . 814 185 Parts Sabotaged . | . . . Parts Stolen . | . . . Parts Stripped . | . . . Power Chain Reactions . | . . . Alert | -11 -10 -10 ------- Run | Yrd Mat Sub Maximum Alert Level . | . . . Low Security (%) 100 | 100 100 . Level 1 . | . . . Level 2 . | . . . Level 3 . | . . . Level 4 . | . . . Level 5 . | . . . High Security . | . . . Max Security . | . . . Peak Influence 82 | . 82 . Initial . | . . . Average 26 | . 30 . Influence Increases 342 | . 192 150 Destroy 0b10 Robot/C 240 | . 100 140 Destroy 0b10 Robot/NC 25 | . 25 . Destroy Leader 34 | . 24 10 Successful Hack 43 | . 43 . Influence Decreases 342 | . 140 202 Entered New Map 29 | . . 29 Time Decay 220 | . 97 123 Lost Part 50 | . . 50 Purge Threat 43 | . 43 . Squads Dispatched 1 | . 1 . Investigation 1 | . 1 . Extermination . | . . . Reinforcement . | . . . Assault . | . . . Garrison . | . . . Intercept . | . . . Searches Triggered . | . . . Construction Impeded . | . . . Haulers Reinforced . | . . . Active Scanning Responses . | . . . Cargo Convoy Interrupts . | . . . Stealth | -11 -10 -10 --------- Run | Yrd Mat Sub Distress Signals . | . . . Communications Jammed . | . . . Distress Signals . | . . . Times Spotted 20 | . 8 12 Peak Tracking Total 6 | . 3 6 Tactical Retreats . | . . . Traps | -11 -10 -10 ------- Run | Yrd Mat Sub Traps Triggered . | . . . Indirectly . | . . . Trap Hack Attempts . | . . . Triggered . | . . . Disarmed . | . . . Reprogrammed . | . . . Reused . | . . . Traps Extracted . | . . . Installed . | . . . Triggered . | . . . Machines | -11 -10 -10 ---------- Run | Yrd Mat Sub Machines Disabled . | . . . Max in Single Turn . | . . . Machines Repaired . | . . . Machines Dismantled . | . . . Machines Sabotaged . | . . . Overloaded Fab Kills . | . . . Hacking | -11 -10 -10 --------- Run | Yrd Mat Sub Machines Accessed 7 | . 6 1 Terminals 6 | . 6 . Fabricators . | . . . Repair Stations . | . . . Recycling Units . | . . . Scanalyzers . | . . . Garrison Access . | . . . Total Hacks 25 | . 21 4 Successful 16 | . 12 4 Failed 9 | . 9 . Catastrophic . | . . . Database Lockouts . | . . . Manual . | . . . Terminals 21 | . 21 . Fabricators . | . . . Repair Stations . | . . . Recycling Units . | . . . Scanalyzers . | . . . Garrison Access . | . . . Terminal Hacks 16 | . 12 4 Record 8 | . 4 4 Branch Access Points 1 | . 1 . Emergency Access Points 1 | . 1 . Unreport Threat 2 | . 2 . Hauler Manifests 1 | . 1 . Zone Layout 3 | . 3 . Fabricator Hacks . | . . . Repair Station Hacks . | . . . Recycling Unit Hacks . | . . . Scanalyzer . | . . . Garrison Access Hacks . | . . . Unauthorized Hacks . | . . . Terminals . | . . . Fabricators . | . . . Repair Stations . | . . . Recycling Units . | . . . Scanalyzers . | . . . Garrison Access . | . . . Data Cores Recovered . | . . . Used . | . . . Hacking Detections 6 | . 6 . Full Trace Events 1 | . 1 . Feedback Events . | . . . Feedback Blocked . | . . . Robot Schematics Acquired . | . . . Robots Built . | . . . Authchips . | . . . Time . | . . . Total Robot Build Rating . | . . . Part Schematics Acquired . | . . . Parts Built . | . . . Authchips . | . . . Time . | . . . Total Part Build Rating . | . . . Parts Repaired . | . . . Time . | . . . Parts Recycled . | . . . Recycled Matter . | . . . Retrieved Matter . | . . . Retrieved Components . | . . . Parts Scanalyzed . | . . . Part Schematics Acquired . | . . . Parts Damaged . | . . . Bothacking | -11 -10 -10 ------------ Run | Yrd Mat Sub Used RIF Installer . | . . . Robots Hacked . | . . . Non-combat . | . . . Combat . | . . . Robot Hacks Applied . | . . . Relay Couplers Released . | . . . Fabnet Peak Effective % . | . . . Robots Rewired . | . . . Allies Hacked . | . . . Hacks Repelled . | . . . Allies | -11 -10 -10 -------- Run | Yrd Mat Sub Total Allies . | . . . Largest Group . | . . . Highest-Rated Group . | . . . Highest-Rated Ally . | . . . Total Orders . | . . . Ally Attacks . | . . . Total Damage . | . . . Kills . | . . . Allies Corrupted . | . . . Allies Melted . | . . . Intel | -11 -10 -10 ------- Run | Yrd Mat Sub Active Infowar (turns) 811 | . 92 719 Structural 811 | . 92 719 Robot Analysis Total . | . . . Derelict Logs Recovered . | . . . Drone Launches . | . . . Drone Recoveries . | . . . Exploration | -11 -10 -10 ------------- Run | Yrd Mat Sub Turns Passed 1017 | 40 258 719 Spaces Moved 713 | 34 158 521 Core 16 | 16 . . Treads . | . . . Legs 697 | 18 158 521 Wheels . | . . . Hover . | . . . Flight . | . . . Fastest Speed 50 | 50 120 120 Average Speed 119 | 87 120 120 Slowest Speed 190 | 120 120 190 Overloaded Moves . | . . . Propulsion Burnouts . | . . . Robots Hopped . | . . . Potential Cave-ins . | . . . Cave-ins Triggered . | . . . Exploration Rate (%) 28 | 3 37 45 Regions Visited 2 Branch Regions 1 Pre-discovered Areas . | . . . Known Exits Taken . | . . . Unknown Exits Taken 2 | 1 1 . Scrap Searched 1 | . . 1 Spaces Dug . | . . . Terrain Destroyed . | . . . Melee . | . . . Projectile . | . . . AOE . | . . . Terrain Rammed . | . . . Walls Destroyed . | . . . Machines Disabled . | . . . Actions | -11 -10 -10 --------- Run | Yrd Mat Sub Total 789 | 44 184 561 Wait 5 | . . 5 Move 711 | 33 157 521 Hop . | . . . Pick Up 12 | 5 5 2 Fast Attach 1 | 1 . . Attach 9 | 5 1 3 Detach . | . . . Swap 1 | . . 1 Drop . | . . . Fire 50 | . 21 29 Melee . | . . . Ram . | . . . Kick . | . . . Crush . | . . . Escape Stasis . | . . . Rewire . | . . . Trap . | . . . Miscellaneous . | . . . Route ------- -11/Scrapyard -10/Materials (discovered 2 exits: Min / *Sub) -10/Subcaves (discovered 3 exits: *Mat x2 / *Rec) History --------- Turn | Location | Event 11 | -11/Scrapyard | Discovered new exit (range 15) 41 | -11/Scrapyard | Entered Materials 61 | -10/Materials | Identified exit to Mines 265 | -10/Materials | Discovered new exit (range 12) 299 | -10/Materials | Entered Subcaves 304 | -10/Subcaves | Build established: Mutant 376 | -10/Subcaves | Visited Clippyterm 380 | -10/Subcaves | Identified exit to Recycling 380 | -10/Subcaves | Identified exit to Materials 380 | -10/Subcaves | Learned Factory stockpile data 837 | -10/Subcaves | Core integrity fell below 50% 1015 | -10/Subcaves | Core integrity fell below 20% 1018 | -10/Subcaves | Destroyed by Y9-1RL(R) with Subdweller Beam Cannon Last Messages --------------- 00861_ Acquired Aluminum Leg. 00862_ Acquired 28 matter. 00967_ S-10 Pest destroyed. 00967_ Critical hit (Destroy). 00967_ Aluminum Leg destroyed. 00971_ Destroyed Flight Unit. 00973_ Flight Unit fries itself beyond repair. 00974_ S-10 Pest destroyed. 00974_ Switching to secondary target: S-10 Pest. 00977_ S-10 Pest destroyed. 00978_ Lgt. Ion Engine fries itself beyond repair. 00980_ Flight Unit fries itself beyond repair. 00988_ Subatomizers dissect the Mak. Sword. 00991_ Acquired 20 matter. 00995_ Lgt. Assault Rifle fries itself beyond repair. 00995_ Acquired 17 matter. 00996_ Acquired 3 matter. 01000_ Barrage Gun destroyed. 01004_ Aluminum Leg destroyed. 01008_ Assault Rifle destroyed. Map ----- +----------------------------------------------------+ | ?????????????????????????????????????????????????? | | ?????????????????????????????????????????????????? | | ?????????????????????????????????????????????????? | | ?????????????????????????????????????????????????? | | ?????????????????????????????????????????????????? | | ?????????????????????????????????????????????????? | | ?????????????????????????????????????????????????? | | ?????????????????????????????????????????????????? | | ?????????????????????????????????????????????????? | | ?????????????????????????????????????????????????? | | ?????###################?????????????????????????? | | ????#####################????????????????????????? | | #???### #### ### ###??????????????????????### | | ###### < ?### ##?????????????????????#### | | ###### ##### %/ ##?????????????????####### | | ### ###### ##?????????????????###### | | ## ##### ##?????????????????## ## | | ## ## ### ###?????????????###### | | # # ### ###??????? ############ | | # ########???? ##### # ## | | ## %##;#####???? #### | | ##### ## # ###?? ### | | ############ ## % #### #### ### # ### | | ##?############# ### ### ### ? ##### ## | | ##????????######## ## !%* #### ????#### ### | | #?????????????### ### @[ ##???? ##??## ## | | ##?????????????### ### ##??## ### | | ##?????????????## # R ##??## ## | | ##??????????????# ## % # ###?## ## | | ##??????????????## ## ############## ### | | ##??????????????# ######## #### ## | | ##??????????????## # # %## ##????## ## | | ##??????????????####### #### #????## ## | | ##??????????????############## ????## ## # | | #????????????????????######?## ???## ## # | | ?????????????????????????????? ??## ## # | | #????????????????????????????? #### ## # | | #?????????????????????????????? # ##?## ## # | | #?????????????????????????????? ####?## ## # | | ##??????????????????????????## ####??## ## | | ###?????????????????????????## ???????## ## | | ###???????????????????????? # ?????## ## | | ##??????????????????????? ## ???### ##### | | ###???????????????????????### #### ##### | | ###???????????????????????## ## ######? | | ##???????????????????????## ####### | | ###??????????????????????### ### | | ###??????????????????????## ## | | ##??????????????????????## #### ## | | ##?????????????????????????## ### | +----------------------------------------------------+ Best States ------------- Heat Dissipation 25 Energy Generation 10 Energy Capacity 250 Matter Stores 300 Matter Capacity 300 Sight Range 16 Terrain Scan Density 10 Resistance: KI 20 Resistance: TH 20 Resistance: EX 20 Resistance: EM 20 Resistance: I 20 Resistance: S 20 Resistance: P 20 Evasion (%) 55 Offensive Hacking 10 Item Schematics ----------------- None Robot Schematics ------------------ None Fabricated ------------ Nothing Repaired ---------- Nothing Alien Tech Used ----------------- None Achievements -------------- None Challenges ------------ None Game ------ Seed TerrorArmageddonBeacon Manual? 0 Play Time 00:12:21 Cumulative 299.6 hours Start 2025.05.12 @ 17:06:20 End 2025.05.12 @ 17:16:30 Sessions 1 Manual Loads 0 Difficulty Adventurer Special Mode None Game No. 246 Rogue 0 Adventurer 183 Explorer 63 Win Type - Total 0 Types 0/0/0/0/0/0/0/0/0/0 Lore% 45 Gallery% 58 Achievement% 52 Wizard Run 0 Options --------- Layout 0 ASCII 0 Keyboard 0 Movement Mouse Keybinds 0 Fullscreen 1 Font 24/Smallcaps Map View 76x50 Zoom Use 0% Tactical HUD 1 Map Filters NONE Filters NONE Steam 1 RUN: 3c99e212-70d3-4100-97bd-e2157ef6afb8